fUST/lending_fUST_20250109
["ID","MTS","AMOUNT","RATE_DAILY","PERIOD"]
[348251708,1736419835564,-621.14,0.00021499,3]
[348251709,1736419835574,-621.14,0.00021499,3]
[348251710,1736419835584,-621.14,0.00021499,3]
[348251711,1736419835594,-621.14,0.00021499,3]
[348251712,1736419835603,-621.14,0.00021499,3]
[348251713,1736419835613,-621.14,0.00021499,3]
[348251714,1736419835623,-621.14,0.00021499,3]
[348251715,1736419835633,-621.14,0.00021499,3]
[348251716,1736419835642,-621.14,0.00021499,3]
[348251717,1736419835652,-621.14,0.00021499,3]
[348251718,1736419835661,-621.14,0.00021499,3]
[348251719,1736419835669,-621.14,0.00021499,3]
[348251720,1736419835679,-621.14,0.00021499,3]
[348251721,1736419835690,-621.14,0.00021499,3]
[348251722,1736419835699,-621.33585618,0.00021499,3]
[348251723,1736419835709,-4035.81,0.00021642,3]
[348251724,1736419835718,-500.0,0.00021642,3]
[348251725,1736419835728,-1341.65,0.00021643,3]
[348251726,1736419835738,-1317.91,0.00021643,3]
[348251727,1736419835748,-1208.08,0.00021643,3]
[348251728,1736419835758,-812.39,0.00021643,2]
[348251729,1736419835768,-500.0,0.00021643,3]
[348251730,1736419835778,-540.24,0.00021643,3]
[348251731,1736419835788,-500.0,0.00021643,3]
[348251732,1736419835798,-151.0,0.000217,4]
[348251733,1736419835807,-587.0,0.00021856,2]
[348251734,1736419835816,-151.0,0.000219,4]
[348251735,1736419835826,-500.0,0.00021915,3]
[348251736,1736419835835,-3529.34,0.00021915,3]
[348251737,1736419835844,-4035.81,0.00021916,3]
[348251738,1736419835855,-1341.65,0.00021917,3]
[348251739,1736419835865,-1317.91,0.00021917,3]
[348251740,1736419835875,-1208.08,0.00021917,3]
[348251741,1736419835885,-812.39,0.00021917,2]
[348251742,1736419835897,-500.0,0.00021917,3]
[348251743,1736419835907,-540.24,0.00021917,3]
[348251744,1736419835916,-500.0,0.00021917,3]
[348251745,1736419835926,-151.0,0.000221,8]
[348251746,1736419835935,-627.351,0.0002211,2]
[348251747,1736419835946,-4035.81,0.0002219,3]
[348251748,1736419835956,-1341.65,0.00022191,3]
[348251749,1736419835965,-1317.91,0.00022191,3]
[348251750,1736419835975,-1208.08,0.00022191,3]
[348251751,1736419835985,-812.39,0.00022191,2]
[348251752,1736419835995,-500.0,0.00022191,3]
[348251753,1736419836005,-540.24,0.00022191,3]
[348251754,1736419836014,-168.32,0.00022191,3]
[348251755,1736419836024,-180.5547106,0.00022269,2]
[348251756,1736419836034,-151.0,0.000223,5]
[348251757,1736419836044,-500.0,0.00022464,3]
[348251758,1736419836053,-4035.81,0.00022464,3]
[348251759,1736419836063,-3529.34,0.00022464,3]
[348251760,1736419836073,-1341.65,0.00022465,3]
[348251761,1736419836083,-1317.91,0.00022465,3]
[348251762,1736419836093,-812.39,0.00022465,2]
[348251763,1736419836103,-500.0,0.00022465,3]
[348251764,1736419836112,-540.24,0.00022465,3]
[348251765,1736419836122,-371.46,0.000225,2]
[348251766,1736419836132,-11384.83996396,0.00022568,2]
[348251767,1736419836142,-500.0,0.00022572,2]
[348251768,1736419836152,-268.60962641,0.00022575,2]
[348251769,1736419836161,-151.0,0.000226,6]
[348251770,1736419836171,-267.15022831,0.00022695,2]
[348251771,1736419836180,-4035.81,0.00022738,3]
[348251772,1736419836191,-1341.65,0.00022739,3]
[348251773,1736419836200,-1317.91,0.00022739,3]
[348251774,1736419836210,-812.39,0.00022739,2]
[348251775,1736419836219,-500.0,0.00022739,3]
[348251776,1736419836228,-540.24,0.00022739,3]
[348251777,1736419836238,-11384.83996396,0.00022767,2]
[348251778,1736419836247,-500.0,0.00022788,3]
[348251779,1736419836257,-3529.34,0.00022788,3]
[348251780,1736419836267,-151.0,0.000228,8]
[348251781,1736419836277,-1027.38810557,0.000229,2]
[348251782,1736419836287,-151.0,0.00023,7]
[348251783,1736419836296,-151.0,0.00023,7]
[348251784,1736419836305,-151.0,0.00023,7]
[348251785,1736419836315,-151.0,0.00023,7]
[348251786,1736419836324,-151.0,0.00023,5]
[348251787,1736419836334,-4035.81,0.00023012,3]
[348251788,1736419836344,-1341.65,0.00023013,3]
[348251789,1736419836353,-1317.91,0.00023013,3]
[348251790,1736419836363,-812.39,0.00023013,2]
[348251791,1736419836372,-500.0,0.00023013,3]
[348251792,1736419836384,-540.24,0.00023013,3]
[348251793,1736419836393,-1000.0,0.00023013,2]
[348251794,1736419836403,-382.2177587,0.00023033,2]
[348251795,1736419836412,-4703.85044884,0.00023118,3]
[348251796,1736419836421,-500.0,0.0002312,2]
[348251797,1736419836431,-1000.0,0.00023126,2]
[348251798,1736419836440,-500.0,0.00023142,3]
[348251799,1736419836449,-3529.34,0.00023142,3]
[348251800,1736419836459,-2297.97554184,0.00023151,2]
[348251801,1736419836468,-180.5547106,0.00023151,2]
[348251802,1736419836477,-2000.0,0.000232,2]
[348251803,1736419836487,-175.0,0.00023218,2]
[348251804,1736419836496,-175.0,0.00023218,2]
[348251805,1736419836506,-152.0,0.00023218,2]
[348251806,1736419836515,-153.0,0.00023218,2]
[348251807,1736419836525,-153.0,0.00023218,2]
[348251808,1736419836535,-153.0,0.00023218,2]
[348251809,1736419836544,-153.0,0.00023218,2]
[348251810,1736419836553,-153.0,0.00023218,2]
[348251811,1736419836563,-153.0,0.00023218,2]
[348251812,1736419836572,-153.0,0.00023218,2]
[348251813,1736419836581,-153.0,0.00023218,2]
[348251814,1736419836591,-153.0,0.00023218,2]
[348251815,1736419836600,-153.0,0.00023218,2]
[348251816,1736419836609,-153.0,0.00023218,2]
[348251817,1736419836618,-153.0,0.00023218,2]
[348251818,1736419836628,-153.0,0.00023218,2]
[348251819,1736419836637,-153.0,0.00023218,2]
[348251820,1736419836647,-153.0,0.00023218,2]
[348251821,1736419836656,-153.0,0.00023218,2]
[348251822,1736419836664,-153.0,0.00023218,2]
[348251823,1736419836674,-153.0,0.00023218,2]
[348251824,1736419836683,-153.0,0.00023218,2]
[348251825,1736419836693,-153.0,0.00023218,2]
[348251826,1736419836703,-242.0,0.00023218,2]
[348251827,1736419836712,-597.31885819,0.00023219,2]
[348251828,1736419836722,-200.8,0.00023236,2]
[348251829,1736419836731,-153.0,0.00023236,2]
[348251830,1736419836741,-153.0,0.00023236,2]
[348251831,1736419836750,-153.0,0.00023236,2]
[348251832,1736419836760,-153.0,0.00023236,2]
[348251833,1736419836769,-153.0,0.00023236,2]
[348251834,1736419836779,-153.0,0.00023236,2]
[348251835,1736419836788,-153.0,0.00023236,2]
[348251836,1736419836797,-153.0,0.00023236,2]
[348251837,1736419836807,-153.0,0.00023236,2]
[348251838,1736419836817,-153.0,0.00023236,2]
[348251839,1736419836827,-153.0,0.00023236,2]
[348251840,1736419836835,-153.0,0.00023236,2]
[348251841,1736419836845,-153.0,0.00023236,2]
[348251842,1736419836854,-153.0,0.00023236,2]
[348251843,1736419836863,-153.0,0.00023236,2]
[348251844,1736419836873,-153.0,0.00023236,2]
[348251845,1736419836883,-153.0,0.00023236,2]
[348251846,1736419836893,-153.0,0.00023236,2]
[348251847,1736419836905,-153.0,0.00023236,2]
[348251848,1736419836915,-238.99,0.00023236,2]
[348251849,1736419836924,-500.0,0.00023242,3]
[348251850,1736419836934,-3529.34,0.00023242,3]
[348251851,1736419836945,-151.0,0.00023243,7]
[348251852,1736419836955,-151.0,0.00023243,7]
[348251853,1736419836965,-151.0,0.00023243,7]
[348251854,1736419836975,-151.0,0.00023243,7]
[348251855,1736419836984,-151.0,0.00023243,7]
[348251856,1736419836994,-151.0,0.00023243,7]
[348251857,1736419837076,-151.0,0.00023243,7]
[348251858,1736419837086,-151.0,0.00023243,7]
[348251859,1736419837096,-151.0,0.00023243,7]
[348251860,1736419837105,-151.0,0.00023243,7]
[348251861,1736419837114,-151.0,0.00023243,7]
[348251862,1736419837124,-151.0,0.00023243,7]
[348251863,1736419837133,-151.0,0.00023243,7]
[348251864,1736419837144,-151.0,0.00023243,7]
[348251865,1736419837156,-151.0,0.00023243,7]
[348251866,1736419837165,-201.600221,0.00023243,7]
[348251867,1736419837175,-2141.38955589,0.00023243,7]
[348251868,1736419837184,-151.0,0.00023243,7]
[348251869,1736419837194,-151.0,0.00023243,7]
[348251870,1736419837203,-151.0,0.00023243,7]
[348251871,1736419837213,-151.0,0.00023243,7]
[348251872,1736419837222,-151.0,0.00023243,7]
[348251873,1736419837232,-151.0,0.00023243,7]
[348251874,1736419837241,-239.95322,0.00023243,7]
[348251875,1736419837251,-151.0,0.00023243,7]
[348251876,1736419837260,-151.0,0.00023243,7]
[348251877,1736419837269,-151.0,0.00023243,7]
[348251878,1736419837279,-151.0,0.00023243,7]
[348251879,1736419837288,-151.0,0.00023243,7]
[348251880,1736419837297,-291.600936,0.00023243,7]
[348251881,1736419837307,-614.03752322,0.0002325,3]
[348251882,1736419837316,-3529.34,0.0002325,3]
[348251883,1736419837326,-3529.34,0.0002325,3]
[348251884,1736419837336,-3529.34,0.0002325,3]
[348251885,1736419837345,-3529.34,0.0002325,3]
[348251886,1736419837355,-3529.34,0.0002325,3]
[348251887,1736419837364,-3529.34,0.0002325,3]
[348251888,1736419837374,-3529.34,0.0002325,3]
[348251889,1736419837383,-3529.34,0.0002325,3]
[348251890,1736419837394,-3529.34,0.0002325,3]
[348251891,1736419837403,-3529.34,0.0002325,3]
[348251892,1736419837413,-3529.34,0.0002325,3]
[348251893,1736419837422,-3529.34,0.0002325,3]
[348251894,1736419837431,-3529.47061805,0.0002325,3]
[348251895,1736419837442,-15419.96474701,0.0002325,5]
[348251896,1736419837451,-3326.65892634,0.0002325,5]
[348251897,1736419837460,-175494.91942292,0.00023251,10]
[348251898,1736419837475,-718.88,0.00023251,10]
[348251923,1736419838248,-500.0,0.00019178,2]
[348251925,1736419838258,-500.0,0.00019178,2]
[348251927,1736419838267,-500.0,0.00019178,2]
[348251929,1736419838277,-500.0,0.00019451,3]
[348251931,1736419838287,-9662.01886705,0.00023251,10]
[348251933,1736419838297,-3048.77613283,0.00023251,2]
[348251935,1736419838306,-4624.69387785,0.00023251,10]
[348251937,1736419838317,-559.062,0.00023251,10]
[348252234,1736419843367,-500.0,0.00019725,3]
[348252236,1736419843376,-500.0,0.00019999,3]
[348252238,1736419843385,-221.58385444,0.00020546,3]
[348252240,1736419843395,-500.0,0.00022695,2]
[348252241,1736419843404,-500.0,0.00022695,2]
[348252243,1736419843413,-2410.5160614,0.00023251,10]
[348252246,1736419843425,-41077.92091946,0.00023251,10]
[348252317,1736419846231,-500.76913346,0.00019862,2]
[348252318,1736419846240,-500.0,0.00022695,2]
[348252319,1736419846249,-1000.0,0.00023243,2]
[348252320,1736419846260,-394192.7314688,0.00023251,10]
[348252321,1736419852747,1150.03554273,0.00025,120]
[348252327,1736420368281,265.491504,0.00013973,2]
[348252329,1736420831115,-151.57184517,0.00018036,2]
[348252330,1736420831144,-89.97945463,0.00018036,2]
[348252331,1736420831169,-536.05160306,0.00018799,2]
[348252332,1736420845144,-248.61035873,0.00018799,2]
[348252333,1736420854107,-10.71394882,0.00018799,2]
[348252334,1736420854243,-226.67241822,0.00018914,2]
[348252394,1736421032721,-182.02481756,0.00018899,2]
[348252396,1736421032731,-684.92540371,0.000189,2]
[348252398,1736421032741,-151.0,0.00018906,2]
[348252400,1736421032752,-56.34977873,0.00018916,2]
[348252952,1736421038505,-6890.87794649,0.00018916,2]
[348252954,1736421038517,-7401.86571,0.00018916,2]
[348252971,1736421038667,-370.90656478,0.00018916,2]
[348252973,1736421038677,-998.60195726,0.00018917,2]
[348252975,1736421038687,-24900.0,0.00018918,2]
[348252977,1736421038696,-250.73964312,0.00018999,2]
[348252979,1736421038706,-379.23765093,0.00018999,2]
[348252981,1736421038715,-84833.52232937,0.00019,17]
[348252983,1736421038724,-175.459,0.00019064,2]
[348252985,1736421038734,-6084.34820001,0.00019175,2]
[348252987,1736421038743,-190.832812,0.00019176,2]
[348252989,1736421038753,-500.0,0.00019178,5]
[348252991,1736421038762,-206.21897067,0.00019178,2]
[348252993,1736421038771,-500.0,0.00019178,2]
[348252995,1736421038780,-500.0,0.00019178,2]
[348252997,1736421038789,-500.0,0.00019178,2]
[348252999,1736421038798,-1681.58,0.00019178,2]
[348253001,1736421038807,-500.0,0.00019452,3]
[348253003,1736421038816,-500.0,0.00019452,2]
[348253005,1736421038825,-500.0,0.00019452,3]
[348253008,1736421038843,-1681.58,0.00019452,3]
[348253010,1736421038854,-151.0,0.000197,2]
[348253012,1736421038864,-557.46290002,0.00019708,2]
[348253014,1736421038873,-165.6553775,0.00019722,2]
[348253016,1736421038883,-500.0,0.00019726,2]
[348253018,1736421038893,-547.68,0.00019726,3]
[348253020,1736421038902,-1681.58,0.00019726,3]
[348253022,1736421038912,-988.0,0.0002,2]
[348253024,1736421038921,-500.0,0.0002,2]
[348253026,1736421038931,-1681.58,0.0002,3]
[348253028,1736421038941,-151.0,0.000201,4]
[348253030,1736421038951,-500.0,0.00020273,2]
[348253032,1736421038960,-1681.58,0.00020273,3]
[348253034,1736421038970,-182.02481753,0.00020315,2]
[348253036,1736421038980,-151.0,0.000204,4]
[348253038,1736421038989,-265.491504,0.00020447,2]
[348253040,1736421038999,-500.0,0.00020547,2]
[348253042,1736421039008,-1681.58,0.00020547,3]
[348253044,1736421039018,-151.0,0.000208,4]
[348253046,1736421039028,-500.0,0.00020821,2]
[348253048,1736421039037,-1681.58,0.00020821,3]
[348253050,1736421039046,-2815.38050991,0.00021,3]
[348253052,1736421039056,-385.12828622,0.00021082,2]
[348253054,1736421039065,-500.0,0.00021095,2]
[348253056,1736421039075,-1681.58,0.00021095,3]
[348253058,1736421039085,-151.0,0.000211,4]
[348253060,1736421039095,-500.0,0.00021368,3]
[348253062,1736421039105,-500.0,0.00021369,2]
[348253064,1736421039114,-1681.58,0.00021369,3]
[348253066,1736421039124,-151.0,0.000215,3]
[348253068,1736421039134,-988.0,0.000216,4]
[348253070,1736421039143,-500.0,0.00021642,3]
[348253072,1736421039153,-500.0,0.00021643,2]
[348253074,1736421039163,-1681.58,0.00021643,3]
[348253077,1736421039174,-182.02481753,0.00021732,2]
[348253079,1736421039183,-151.0,0.000218,3]
[348253080,1736421039195,-500.0,0.00021917,2]
[348253083,1736421039205,-1681.58,0.00021917,3]
[348253085,1736421039215,-601.105,0.0002211,2]
[348253087,1736421039227,-500.0,0.00022191,2]
[348253089,1736421039236,-1681.58,0.00022191,3]
[348253091,1736421039252,-151.0,0.000222,8]
[348253093,1736421039263,-500.0,0.00022464,3]
[348253095,1736421039272,-500.0,0.00022465,2]
[348253097,1736421039281,-1681.58,0.00022465,3]
[348253099,1736421039291,-334.31,0.000225,2]
[348253101,1736421039303,-151.0,0.000225,5]
[348253103,1736421039312,-500.0,0.00022516,2]
[348253105,1736421039321,-177.98459761,0.00022737,2]
[348253107,1736421039330,-217.94887825,0.00022737,2]
[348253109,1736421039341,-500.0,0.00022738,3]
[348253111,1736421039350,-500.0,0.00022739,2]
[348253113,1736421039360,-1681.58,0.00022739,3]
[348253115,1736421039370,-151.0,0.000229,8]
[348253117,1736421039380,-500.0,0.00023012,3]
[348253119,1736421039389,-311.61497832,0.00023013,2]
[348253133,1736421039518,-1681.58,0.00023013,3]
[348253135,1736421039528,-191.1088794,0.00023033,2]
[348253137,1736421039537,-7709.9823735,0.00023248,5]
[348253139,1736421039547,-1663.32946317,0.00023248,5]
[348253141,1736421039556,-151.0,0.00023248,7]
[348253143,1736421039565,-151.0,0.00023248,7]
[348253145,1736421039574,-151.0,0.00023248,7]
[348253147,1736421039583,-252.083349,0.00023248,7]
[348253149,1736421039593,-292.533554,0.00023248,7]
[348253151,1736421039603,-155.561417,0.00023248,7]
[348253153,1736421039612,-155.561417,0.00023248,7]
[348253155,1736421039621,-155.561417,0.00023248,7]
[348253157,1736421039630,-155.561417,0.00023248,7]
[348253159,1736421039640,-155.561417,0.00023248,7]
[348253161,1736421039649,-155.561417,0.00023248,7]
[348253163,1736421039659,-155.561417,0.00023248,7]
[348253165,1736421039669,-155.561417,0.00023248,7]
[348253167,1736421039679,-155.561417,0.00023248,7]
[348253169,1736421039689,-155.561417,0.00023248,7]
[348253171,1736421039698,-155.561417,0.00023248,7]
[348253173,1736421039708,-155.561417,0.00023248,7]
[348253175,1736421039717,-155.561417,0.00023248,7]
[348253177,1736421039726,-155.561417,0.00023248,7]
[348253179,1736421039736,-155.561417,0.00023248,7]
[348253181,1736421039745,-155.561417,0.00023248,7]
[348253183,1736421039755,-155.561417,0.00023248,7]
[348253185,1736421039764,-155.561417,0.00023248,7]
[348253187,1736421039773,-155.561417,0.00023248,7]
[348253189,1736421039783,-155.561421,0.00023248,7]
[348253191,1736421039792,-151.0,0.00023248,7]
[348253193,1736421039802,-151.0,0.00023248,7]
[348253195,1736421039811,-209.317166,0.00023248,7]
[348253197,1736421039822,-151.0,0.00023248,7]
[348253199,1736421039831,-151.0,0.00023248,7]
[348253201,1736421039841,-151.0,0.00023248,7]
[348253203,1736421039850,-151.0,0.00023248,7]
[348253205,1736421039860,-151.0,0.00023248,7]
[348253207,1736421039869,-151.0,0.00023248,7]
[348253209,1736421039879,-151.0,0.00023248,7]
[348253211,1736421039888,-151.0,0.00023248,7]
[348253213,1736421039897,-2077.600273,0.00023248,7]
[348253215,1736421039906,-2077.600273,0.00023248,7]
[348253217,1736421039916,-2077.600273,0.00023248,7]
[348253219,1736421039925,-2077.600273,0.00023248,7]
[348253221,1736421039936,-2077.600273,0.00023248,7]
[348253223,1736421039945,-2077.600273,0.00023248,7]
[348253225,1736421039954,-2077.600273,0.00023248,7]
[348253227,1736421039963,-2077.600273,0.00023248,7]
[348253231,1736421039972,-2077.600273,0.00023248,7]
[348253234,1736421039982,-2077.600273,0.00023248,7]
[348253236,1736421039991,-2077.600273,0.00023248,7]
[348253237,1736421040000,-2077.600273,0.00023248,7]
[348253239,1736421040010,-2077.600273,0.00023248,7]
[348253241,1736421040019,-2077.600273,0.00023248,7]
[348253244,1736421040029,-2077.600273,0.00023248,7]
[348253247,1736421040039,-2077.600273,0.00023248,7]
[348253250,1736421040049,-2077.600273,0.00023248,7]
[348253252,1736421040059,-2077.600273,0.00023248,7]
[348253253,1736421040068,-2077.600273,0.00023248,7]
[348253255,1736421040078,-2077.600271,0.00023248,7]
[348253258,1736421040088,-151.0,0.00023248,7]
[348253260,1736421040097,-151.0,0.00023248,7]
[348253262,1736421040107,-151.0,0.00023248,7]
[348253263,1736421040116,-151.0,0.00023248,7]
[348253265,1736421040125,-151.0,0.00023248,7]
[348253268,1736421040135,-151.0,0.00023248,7]
[348253270,1736421040144,-151.0,0.00023248,7]
[348253272,1736421040154,-151.0,0.00023248,7]
[348253273,1736421040163,-151.0,0.00023248,7]
[348253275,1736421040174,-151.0,0.00023248,7]
[348253278,1736421040184,-151.0,0.00023248,7]
[348253280,1736421040195,-151.0,0.00023248,7]
[348253282,1736421040204,-151.0,0.00023248,7]
[348253283,1736421040214,-151.0,0.00023248,7]
[348253285,1736421040228,-151.0,0.00023248,7]
[348253287,1736421040238,-277.831416,0.00023248,7]
[348253289,1736421040247,-151.0,0.00023248,7]
[348253291,1736421040256,-151.0,0.00023248,7]
[348253294,1736421040266,-296.881392,0.00023248,7]
[348253296,1736421040276,-22150.35143352,0.00023248,10]
[348253318,1736421040496,-182.02481753,0.00023148,2]
[348253319,1736421040505,-113839.63226186,0.00023248,10]
[348253609,1736421043347,-501.26216557,0.00023248,10]
[348253614,1736421043396,-364.765,0.00023248,10]
[348253616,1736421043408,-44322.19385387,0.00023248,10]
[348253620,1736421043435,-177200.49073878,0.00023248,10]
[348253788,1736421046361,-1994.21820083,0.00023248,10]
[348253793,1736421046400,-8847.44,0.00023248,10]
[348253796,1736421046411,-9924.89999999,0.00023248,10]
[348253799,1736421046439,-5152.68809764,0.00023248,10]
[348253806,1736421046485,-17412.0278973,0.00023248,10]
[348255676,1736421240443,3628.0,0.00025,120]
[348255677,1736421258253,258.942353,0.00013973,2]
[348255685,1736422043161,-400.92967763,0.00017109,2]
[348255686,1736422043183,-17.7716431,0.00017209,2]
[348255687,1736422045098,-187.0117269,0.00017209,2]
[348255688,1736422045118,-18.85764856,0.00018099,2]
[348255689,1736422047106,-159.24707736,0.00018099,2]
[348255690,1736422047128,-178.10472591,0.00018107,2]
[348255691,1736422047151,-151.0,0.00018199,2]
[348255692,1736422047269,-300.0,0.00018207,2]
[348255693,1736422047293,-669.19462209,0.00018207,2]
[348255694,1736422052101,-1171.16131888,0.00018207,2]
[348255698,1736422181237,155.25685162,0.00013973,2]
[348255699,1736422181263,110.73838438,0.00013973,2]
[348255724,1736422232973,-300.0,0.0001748,2]
[348255725,1736422232984,-10944.28173393,0.0001748,2]
[348255755,1736422238654,-6140.71826607,0.0001748,2]
[348255757,1736422238664,-24900.0,0.00017481,2]
[348255759,1736422238674,-225.045016,0.00017694,2]
[348255761,1736422238683,-777.2395864,0.00017979,2]
[348255763,1736422238693,-297.21825424,0.00018199,2]
[348255765,1736422238702,-500.0,0.00018209,2]
[348255767,1736422238711,-500.0,0.00018209,2]
[348255769,1736422238720,-261.27437681,0.00018209,2]
[348255772,1736422238730,-500.0,0.00018209,2]
[348255774,1736422238742,-521.88768074,0.00018209,2]
[348255776,1736422238751,-192.45830428,0.00018209,2]
[348255778,1736422238760,-41428.170237,0.0001821,2]
[348255780,1736422238769,-152.0,0.00018756,2]
[348255782,1736422238778,-2064.31699584,0.00018889,2]
[348255784,1736422238788,-840.82952934,0.00018889,2]
[348255797,1736422238883,-204.78337,0.0001893,2]
[348255799,1736422238915,-462.763409,0.00018989,2]
[348255802,1736422238926,-302.57643837,0.00019,2]
[348255804,1736422238935,-175.46,0.00019061,2]
[348255806,1736422238945,-420.0,0.00019082,2]
[348255807,1736422238954,-559.02,0.00019178,2]
[348255808,1736422238963,-630.6,0.00019178,2]
[348255809,1736422238973,-302.57643837,0.0001919,2]
[348255810,1736422238984,-364.84561344,0.0001938,2]
[348255811,1736422238994,-500.0,0.0001945,5]
[348255812,1736422239003,-500.0,0.0001945,3]
[348255813,1736422239013,-559.02,0.00019452,3]
[348255814,1736422239025,-630.6,0.00019452,3]
[348255815,1736422239035,-154.97,0.00019452,2]
[348255816,1736422239045,-500.0,0.00019724,3]
[348255817,1736422239054,-559.02,0.00019726,3]
[348255818,1736422239064,-630.6,0.00019726,3]
[348255819,1736422239075,-500.0,0.00019998,3]
[348255820,1736422239088,-559.02,0.0002,3]
[348255821,1736422239097,-630.6,0.0002,3]
[348255822,1736422239107,-559.02,0.00020273,3]
[348255823,1736422239116,-630.6,0.00020273,3]
[348255824,1736422239126,-265.995236,0.00020447,2]
[348255825,1736422239136,-559.02,0.00020547,3]
[348255826,1736422239145,-630.6,0.00020547,3]
[348255827,1736422239154,-559.02,0.00020821,3]
[348255828,1736422239164,-630.6,0.00020821,3]
[348255829,1736422239174,-559.02,0.00021095,3]
[348255830,1736422239183,-630.6,0.00021095,3]
[348255831,1736422239193,-559.02,0.00021369,3]
[348255832,1736422239202,-630.6,0.00021369,3]
[348255833,1736422239212,-559.02,0.00021643,3]
[348255834,1736422239221,-630.6,0.00021643,3]
[348255835,1736422239230,-559.02,0.00021917,3]
[348255836,1736422239240,-3000.0,0.00021917,30]
[348255837,1736422239250,-3000.0,0.00021917,30]
[348255838,1736422239259,-3000.0,0.00021917,30]
[348255839,1736422239269,-999.192737,0.00021917,30]
[348255840,1736422239278,-630.6,0.00021917,3]
[348255841,1736422239288,-576.258,0.0002211,2]
[348255842,1736422239298,-559.02,0.00022191,3]
[348255843,1736422239308,-630.6,0.00022191,3]
[348255844,1736422239318,-176.71377593,0.00022364,2]
[348255845,1736422239327,-499.999999,0.0002238,2]
[348255846,1736422239336,-500.0,0.00022464,3]
[348255847,1736422239346,-559.02,0.00022465,3]
[348255848,1736422239357,-630.6,0.00022465,3]
[348255849,1736422239367,-300.88,0.000225,2]
[348255850,1736422239376,-500.0,0.00022738,3]
[348255851,1736422239385,-493.10753614,0.00022739,3]
[348255852,1736422239397,-65.91246386,0.00022739,3]
[348255853,1736422239406,-630.6,0.00022739,3]
[348255854,1736422239415,-456.61693581,0.000229,2]
[348255855,1736422239426,-6645.85738328,0.00022931,2]
[348255856,1736422239435,-500.0,0.00023012,3]
[348255857,1736422239445,-559.02,0.00023013,3]
[348255858,1736422239455,-630.6,0.00023013,3]
[348255859,1736422239464,-191.1088794,0.00023033,2]
[348255860,1736422239473,-928.09305324,0.00023244,7]
[348255861,1736422239481,-152.437364,0.00023248,7]
[348255862,1736422239494,-151.0,0.00023248,7]
[348255863,1736422239503,-151.0,0.00023248,7]
[348255864,1736422239512,-151.0,0.00023248,7]
[348255865,1736422239522,-151.0,0.00023248,7]
[348255866,1736422239531,-151.0,0.00023248,7]
[348255867,1736422239541,-236.41686,0.00023248,7]
[348255868,1736422239550,-151.328184,0.00023248,7]
[348255869,1736422239560,-200.97500559,0.00023249,2]
[348255870,1736422239570,-152.56421478,0.00023249,2]
[348255871,1736422239581,-13644.83265604,0.0002325,10]
[348256221,1736422243637,-500.0,0.00020272,3]
[348256223,1736422243646,-500.0,0.00020546,3]
[348256225,1736422243655,-500.0,0.0002082,3]
[348256227,1736422243665,-362.20439685,0.00021094,3]
[348256229,1736422243674,-156.93981835,0.00022464,3]
[348256231,1736422243684,-38513.93656666,0.0002325,10]
[348256233,1736422243695,-257829.82697242,0.0002325,10]
[348256553,1736422246763,-67128.33071203,0.0002325,10]
[348256558,1736422246796,-5363.49061178,0.0002325,10]
[348256560,1736422246807,-12104.91651681,0.0002325,10]